Cogmind - Beta 15 @@@ ROGUE MODE // 2025.07.03 @ 20:09:46 Player: winnking222 Result: Self-destructed Performance ------------- Evolutions (4) 2000 Regions Visited (7) 1400 Robots Destroyed (45) 225 Value Destroyed (1765) 1765 Prototype IDs (25) 500 Alien Tech Used (0) 0 Bonus (1184) 1184 TOTAL SCORE: 7074 Bonus ------- High Alert Combat Kills 80 Follower Combat Kills 304 Registered with UFD 300 Met Optimus in HQ 500 Cogmind --------- Core Integrity 682/850 Matter 266/300 Energy 310/310 System Corruption 0% Temperature Cool (0) Movement Rolling (80) Ox1 Location -6/Factory Parts ------- > --- POWER (1) -------- Heavy Deuterium Engine > --- PROPULSION (5) --- Overtuned Huge Scrapsphere Overtuned Huge Scrapsphere > --- UTILITY (6) ------ Scrap Suit Advanced Heat Sink Large Storage Unit Seismic Detector Improved Targeting Computer > --- WEAPON (3) ------- Overtuned Pulse Rifle Gatling Laser > --- INVENTORY (15) --- Carbon-fiber Leg Carbon-fiber Leg Overtuned Flexi-carbon Leg Overtuned Scrapsphere Huge Storage Unit Surveybot 17 Chip Improved Light Armor Plating Mapping Drone Bay (2/3) CPS Tube (2) CPS Tube (2) Peak State ------------ > --- POWER ------------ Makeshift Power Source > --- PROPULSION ------- Overtuned Scrapsphere Flightbrick > --- UTILITY ---------- Scrap Suit Large Storage Unit Enhanced Optical Array Seismic Detector 0b10 Decoder Chip [Skirmisher] Improved Light Armor Plating Mapping Drone Bay > --- WEAPON ----------- Overtuned Pulse Rifle Overtuned Railgun CPS Tube > --- INVENTORY -------- Overtuned Flexi-carbon Leg Overtuned Scrapsphere Overtuned Huge Scrapsphere Overtuned Huge Scrapsphere Improved Heat Sink Surveybot 17 Chip Seismic Detector Heavy Riot Gun Plasma Cutter CPS Tube Vortex Trap Vortex Trap [Rating: 91] Favorites ----------- Power Makeshift Power Source Engine Makeshift Power Source Propulsion Light Treads Treads Light Treads Wheel Overtuned Huge Scrapsphere Flight Unit Flightbrick Utility Seismic Detector Device Seismic Detector Storage Large Storage Unit Processor 0b10 Decoder Chip [Skirmisher] Protection Improved Light Armor Plating Weapon Subdweller Machine Gun Energy Gun Subdweller Laser Energy Cannon Subdweller Beam Cannon Ballistic Gun Subdweller Machine Gun Special Weapon CPS Tube Build | -11 -10 -10 -9 -9 -6 -6 -6 ------- Run | Yrd Mat Sub Rec Scr Fac Was Fac Slots Evolved 8 | . . . . . 8 . . Power . | . . . . . . . . Propulsion 3 | . . . . . 3 . . Utility 4 | . . . . . 4 . . Weapon 1 | . . . . . 1 . . Parts Attached 54 | 8 1 14 2 10 13 . 6 Power 7 | 2 . 2 . 2 1 . . Engine 7 | 2 . 2 . 2 1 . . Core . | . . . . . . . . Reactor . | . . . . . . . . Propulsion 11 | 2 . 2 . 4 3 . . Treads 5 | 2 . 2 . 1 . . . Leg . | . . . . . . . . Wheel 5 | . . . . 3 2 . . Hover . | . . . . . . . . Flight 1 | . . . . . 1 . . Utility 17 | 2 1 3 1 1 6 . 3 Device 9 | 1 . 3 . 1 3 . 1 Storage 4 | 1 1 . 1 . . . 1 Processor 3 | . . . . . 2 . 1 Hackware . | . . . . . . . . Protection 1 | . . . . . 1 . . Artifact . | . . . . . . . . Weapon 19 | 2 . 7 1 3 3 . 3 Energy Gun 6 | . . 1 . 2 2 . 1 Energy Cannon 2 | . . 2 . . . . . Ballistic Gun 9 | 2 . 4 1 1 . . 1 Ballistic Cannon . | . . . . . . . . Launcher . | . . . . . . . . Special Weapon 2 | . . . . . 1 . 1 Impact Weapon . | . . . . . . . . Slashing Weapon . | . . . . . . . . Piercing Weapon . | . . . . . . . . Special Melee Weapon . | . . . . . . . . Unidentified Prototypes 2 | . . . . . 2 . . Parts Lost 8 | . . . 2 . 1 . 5 Power 1 | . . . 1 . . . . Propulsion 1 | . . . . . . . 1 Utility 2 | . . . . . 1 . 1 Weapon 4 | . . . 1 . . . 3 Highest Loss Streak 2 | . . . 1 . 1 . 2 To Critical Strikes . | . . . . . . . . Average Backups 12 | 2 4 10 13 15 10 9 11 Power . | . . . . . . 1 . Propulsion 2 | . 1 2 2 3 3 2 3 Utility 5 | . 2 4 6 7 3 3 4 Weapon 3 | . 1 3 4 3 . . . Tool/Special . | . . . . . . . . Unused Backups 27 | . . 4 . 13 1 . 9 Power 1 | . . . . 1 . . . Propulsion 8 | . . 2 . 1 . . 5 Utility 10 | . . 1 . 5 1 . 3 Weapon 7 | . . 1 . 6 . . . Tool/Special 1 | . . . . . . . 1 Average Slot Usage (%) 82 | . 100 100 95 66 66 80 77 Engine 8 | . 14 14 10 4 5 6 6 Treads 19 | . 28 28 28 16 . . . Wheel 4 | . . . . 7 11 20 19 Device 14 | . 14 14 14 13 15 20 20 Storage 11 | . 14 14 14 11 5 6 6 Energy Gun 5 | . . 11 . 1 5 6 8 Energy Cannon 1 | . . 1 10 . . . . Ballistic Gun 12 | . 28 14 15 11 6 13 8 Peak Build Rating 91 | 7 7 18 18 40 91 69 71 Average Rating 21 | 5 7 14 16 17 76 68 65 On Entrance 27 | . 7 7 16 14 40 69 69 Naked Turns . | . . . . . . . . Heaviest Build 102 | 15 30 41 100 94 102 51 52 Greatest Support 48 | 40 40 40 40 40 48 48 48 Greatest Overweight (x) 31 | . . 1 2 31 12 1 1 Average Overweight (x) 1 | . . . 1 2 3 1 . Largest Inventory Capacity 25 | 8 15 15 25 25 25 15 25 Average Capacity 18 | 7 8 15 22 20 19 15 15 Most Carried 25 | 5 5 15 25 25 24 11 15 Average Carried 16 | 2 4 13 18 19 13 10 12 Final Capacity 25 | 8 15 15 25 25 15 15 15 Final Carried 25 | 4 4 15 25 24 11 10 10 Class Distribution -------------------- 89% | Mutant 9% | Scrapper Dominant Class ---------------- Mutant | -10/Materials Mutant | -10/Subcaves Mutant | -9/Recycling Mutant | -9/Scraptown Scrapper | -6/Factory Scrapper | -6/Waste Scrapper | -6/Factory Resources | -11 -10 -10 -9 -9 -6 -6 -6 ----------- Run | Yrd Mat Sub Rec Scr Fac Was Fac Matter Collected 2163 | 343 9 378 105 588 256 . 484 Remotely . | . . . . . . . . Salvage Created 2128 | 89 . 238 276 . 466 . 1059 Parts 106 | 13 . 15 14 . 17 . 47 Haulers Intercepted 2 | . . . . . 1 . 1 Recyclers Shooed 3 | . . . 2 . 1 . . Parts Field Recycled . | . . . . . . . . Retrieved Matter . | . . . . . . . . Parts Self-Destructed 7 | . . 7 . . . . . Prevented . | . . . . . . . . Kills | -11 -10 -10 -9 -9 -6 -6 -6 ------- Run | Yrd Mat Sub Rec Scr Fac Was Fac Combat Hostiles Destroyed 32 | . . 6 5 . 4 . 17 Guns 31 | . . 6 4 . 4 . 17 Cannons 1 | . . . 1 . . . . Classes Destroyed 15 | 1 . 2 4 . 4 . 4 Worker 1 | . . . . . 1 . . Builder 1 | . . . . . . . 1 Tunneler 5 | 5 . . . . . . . Hauler 2 | . . . . . 1 . 1 Recycler 2 | . . . 1 . 1 . . Watcher 1 | . . . . . 1 . . Swarmer 3 | . . . 1 . . . 2 Saboteur 1 | . . . . . . . 1 Grunt 12 | . . . . . 2 . 10 Brawler 1 | . . . 1 . . . . Sentry 6 | . . 1 2 . 1 . 2 Programmer 3 | . . . 1 . 1 . 1 Heavy 1 | . . . . . . . 1 Subdweller 5 | . . 5 . . . . . Scrapoid 1 | . . . . . . . 1 Best Kill Streak 9 | 2 . 1 4 . 4 . 9 Combat Bots Only 8 | . . 1 4 . 3 . 8 Max Kills in Single Turn 2 | 1 . 1 1 . 1 . 2 Gunslinging . | . . . . . . . . Exploded . | . . . . . . . . Melee . | . . . . . . . . Uniques/NPCs Destroyed . | . . . . . . . . Combat | -11 -10 -10 -9 -9 -6 -6 -6 -------- Run | Yrd Mat Sub Rec Scr Fac Was Fac Hostile Shots Fired 205 | . . 38 39 . 43 2 83 Missed 64 | . . 9 5 . 19 . 31 Hits 141 | . . 29 34 . 24 2 52 Melee 2 | . . . . . . 2 . Projectile 139 | . . 29 34 . 24 . 52 Critical Strikes 9 | . . 1 . . 1 1 6 Damage Taken 2744 | . . 565 415 . 466 95 1203 Core 273 | . . 53 52 . 25 . 143 Absorbed by Shields . | . . . . . . . . Regen/Repaired (Parts) 44 | . . . . . 18 . 26 Core Remaining (%) 79 | 100 . . . 58 . . . Volleys Fired 208 | 12 . 90 19 . 25 6 56 Largest 3 | 2 . 2 2 . 3 3 3 Hottest 190 | 40 . 140 110 . 180 150 190 Shots Fired 443 | 24 . 156 37 . 59 18 149 Gun 417 | 24 . 148 29 . 59 18 139 Cannon 16 | . . 8 8 . . . . Launcher . | . . . . . . . . Special 10 | . . . . . . . 10 Kinetic 239 | 24 . 79 29 . 31 12 64 Thermal 201 | . . 77 8 . 25 6 85 Explosive . | . . . . . . . . Electromagnetic 3 | . . . . . 3 . . Robot Hit Streak 16 | 3 . 16 9 . 8 8 12 Robot Miss Streak 5 | 2 . 2 5 . 4 3 4 Penetration Max 2 | . . . . . 2 . 1 Secondary Targets 3 | . . . . . . . 3 Max Gunslinging Chain 1 | . . . . . . . 1 Shots Hit Robots 193 | 14 . 49 21 . 32 10 67 Core Hits 95 | 6 . 11 8 . 17 2 51 Critical Kills 3 | . . . . . 1 . 2 Critical Parts Destroyed 5 | . . . . . 2 . 3 Critical Strikes 14 | . . 3 . . 4 1 6 Burn 3 | . . . . . 1 1 1 Destroy 11 | . . 3 . . 3 . 5 Melee Attacks . | . . . . . . . . Impact . | . . . . . . . . Slashing . | . . . . . . . . Piercing . | . . . . . . . . Sneak Attacks . | . . . . . . . . Combat Hostiles . | . . . . . . . . Follow-up Attacks . | . . . . . . . . Damage Inflicted 5018 | 192 . 736 546 . 1104 313 2127 Guns 4709 | 192 . 709 401 . 1086 313 2008 Cannons 172 | . . 27 145 . . . . Explosions 119 | . . . . . . . 119 Melee . | . . . . . . . . Ramming 18 | . . . . . 18 . . Kinetic 2957 | 192 . 309 401 . 728 178 1149 Thermal 1945 | . . 427 145 . 317 135 921 Explosive . | . . . . . . . . Electromagnetic 98 | . . . . . 41 . 57 Impact . | . . . . . . . . Slashing . | . . . . . . . . Piercing . | . . . . . . . . Highest Corruption . | . . . . . . . . Average Corruption . | . . . . . . . . Corruption Purged . | . . . . . . . . Corruption Blocked . | . . . . . . . . Overload Shots . | . . . . . . . . Overflow Damage 67 | . . . 9 . . . 58 Projectiles 9 | . . . 9 . . . . Explosions 58 | . . . . . . . 58 Melee . | . . . . . . . . Knockbacks . | . . . . . . . . Impact . | . . . . . . . . Kinetic . | . . . . . . . . Secondary . | . . . . . . . . Self-Inflicted Damage 161 | . . . . . 8 . 153 Shots 2 | . . . . . . . 2 Rammed 3 | . . 1 . . 2 . . Targets Rammed 3 | . . 1 . . 2 . . Kicked . | . . . . . . . . Crushed . | . . . . . . . . Highest Temperature 372 | . . 105 366 . 360 372 253 Average Temperature 103 | . . 40 155 . 143 190 59 Received Heat Transfer 687 | . . 111 81 . 114 . 381 Effects 5 | . . . 1 . 2 . 2 Shutdowns 1 | . . . 1 . . . . Energy Bleed 1 | . . . . . 1 . . Interference 2 | . . . . . . . 2 Matter Decay 1 | . . . . . 1 . . Siege Activations . | . . . . . . . . Martial Activations . | . . . . . . . . Shielding Activations . | . . . . . . . . Robots Disrupted . | . . . . . . . . Combat Hostiles . | . . . . . . . . Robots Corrupted . | . . . . . . . . Combat Hostiles . | . . . . . . . . Parts Fried . | . . . . . . . . Impact Corruptions . | . . . . . . . . Robots Melted . | . . . . . . . . Combat Hostiles . | . . . . . . . . Parts Melted 2 | . . . . . . . 2 Heat Transferred 3926 | . . 512 167 . 850 400 1997 Parts Sabotaged . | . . . . . . . . Parts Stolen . | . . . . . . . . Parts Stripped . | . . . . . . . . Power Chain Reactions . | . . . . . . . . Alert | -11 -10 -10 -9 -9 -6 -6 -6 ------- Run | Yrd Mat Sub Rec Scr Fac Was Fac Maximum Alert Level 3 | . . . . . . . 3 Low Security (%) 84 | 100 100 . 100 . 100 100 41 Level 1 1 | . . . . . . . 7 Level 2 2 | . . . . . . . 7 Level 3 11 | . . . . . . . 42 Level 4 . | . . . . . . . . Level 5 . | . . . . . . . . High Security . | . . . . . . . . Max Security . | . . . . . . . . Peak Influence 815 | 5 . . 87 . 101 32 815 Initial 32 | . . . . . . 32 . Average 117 | 1 . . 14 . 20 9 407 Influence Increases 1527 | 25 . 20 140 . 220 6 1116 Destroy 0b10 Robot/C 700 | . . 20 120 . 100 . 460 Destroy 0b10 Robot/NC 70 | 25 . . 10 . 20 . 15 Destroy Leader 146 | . . . . . 34 . 112 Allied During Kill 86 | . . . 3 . 3 . 80 Trap Triggered on 0b10 10 | . . . . . . . 10 Successful Hack 5 | . . . . . . . 5 Disable Machine 150 | . . . . . 30 . 120 Anti-Garrison Action 150 | . . . . . . . 150 Destroy Structure 90 | . . . 7 . 18 6 59 Lose Combat Pursuer 120 | . . . . . 15 . 105 Influence Decreases 819 | 25 . 20 95 45 127 99 408 Entered New Map 106 | . . . . 45 . 61 . Time Decay 555 | 25 . 20 75 . 117 30 288 Lost Part 70 | . . . 20 . 10 . 40 Lost Ally 88 | . . . . . . 8 80 Squads Dispatched 20 | . . . . . 6 . 14 Investigation 3 | . . . . . 1 . 2 Extermination 2 | . . . . . 1 . 1 Reinforcement 12 | . . . . . 4 . 8 Assault 2 | . . . . . . . 2 Garrison 1 | . . . . . . . 1 Intercept . | . . . . . . . . Searches Triggered . | . . . . . . . . Construction Impeded . | . . . . . . . . Haulers Reinforced 4 | . . . . . 3 . 1 Active Scanning Responses . | . . . . . . . . Cargo Convoy Interrupts . | . . . . . . . . Stealth | -11 -10 -10 -9 -9 -6 -6 -6 --------- Run | Yrd Mat Sub Rec Scr Fac Was Fac Distress Signals . | . . . . . . . . Communications Jammed . | . . . . . . . . Distress Signals . | . . . . . . . . Times Spotted 73 | . . 13 8 . 9 6 37 Peak Tracking Total 6 | . . 6 4 . 4 6 6 Tactical Retreats 5 | . . . . . 1 . 4 Traps | -11 -10 -10 -9 -9 -6 -6 -6 ------- Run | Yrd Mat Sub Rec Scr Fac Was Fac Traps Triggered 2 | . . . . . 1 . 1 Indirectly . | . . . . . . . . Trap Hack Attempts . | . . . . . . . . Triggered . | . . . . . . . . Disarmed . | . . . . . . . . Reprogrammed . | . . . . . . . . Reused 2 | . . . . . . 1 1 Traps Extracted . | . . . . . . . . Installed 3 | . . . . 1 . 1 1 Triggered 1 | . . . . . . . 1 Most Traps Carried 4 | . . 2 . 4 2 2 1 Machines | -11 -10 -10 -9 -9 -6 -6 -6 ---------- Run | Yrd Mat Sub Rec Scr Fac Was Fac Machines Disabled 12 | . . 1 . . 2 . 9 Max in Single Turn 5 | . . 1 . . 1 . 5 Garrison Access 1 | . . . . . . . 1 Machines Repaired . | . . . . . . . . Machines Dismantled . | . . . . . . . . Machines Sabotaged . | . . . . . . . . Overloaded Fab Kills . | . . . . . . . . Hacking | -11 -10 -10 -9 -9 -6 -6 -6 --------- Run | Yrd Mat Sub Rec Scr Fac Was Fac Machines Accessed 13 | . . 2 . 6 1 . 4 Terminals 1 | . . . . . . . 1 Fabricators 2 | . . . . . . . 2 Repair Stations . | . . . . . . . . Recycling Units 1 | . . . . . . . 1 Scanalyzers . | . . . . . . . . Garrison Access 1 | . . . . . 1 . . Total Hacks 69 | . . 14 . 48 2 . 5 Successful 65 | . . 14 . 48 . . 3 Failed 4 | . . . . . 2 . 2 Catastrophic 3 | . . . . . 1 . 2 Database Lockouts . | . . . . . . . . Manual 1 | . . . . . . . 1 Terminals 1 | . . . . . . . 1 Fabricators 3 | . . . . . . . 3 Repair Stations . | . . . . . . . . Recycling Units 1 | . . . . . . . 1 Scanalyzers . | . . . . . . . . Garrison Access 2 | . . . . . 2 . . Terminal Hacks 63 | . . 14 . 48 . . 1 Record 55 | . . 13 . 42 . . . Robot Analysis 5 | . . . . 5 . . . Open DSF 1 | . . . . . . . 1 Proto ID Catalog 2 | . . 1 . 1 . . . Fabricator Hacks 1 | . . . . . . . 1 Network Status 1 | . . . . . . . 1 Repair Station Hacks . | . . . . . . . . Recycling Unit Hacks . | . . . . . . . . Scanalyzer . | . . . . . . . . Garrison Access Hacks . | . . . . . . . . Unauthorized Hacks 1 | . . . . . . . 1 Terminals . | . . . . . . . . Fabricators . | . . . . . . . . Repair Stations . | . . . . . . . . Recycling Units 1 | . . . . . . . 1 Scrapoids 1 | . . . . . . . 1 Scanalyzers . | . . . . . . . . Garrison Access . | . . . . . . . . Data Cores Recovered . | . . . . . . . . Used . | . . . . . . . . Hacking Detections 3 | . . . . . 1 . 2 Full Trace Events 2 | . . . . . 1 . 1 Feedback Events . | . . . . . . . . Feedback Blocked . | . . . . . . . . Robot Schematics Acquired . | . . . . . . . . Robots Built . | . . . . . . . . Authchips . | . . . . . . . . Time . | . . . . . . . . Total Robot Build Rating . | . . . . . . . . Part Schematics Acquired . | . . . . . . . . Parts Built . | . . . . . . . . Authchips . | . . . . . . . . Time . | . . . . . . . . Total Part Build Rating . | . . . . . . . . Parts Repaired . | . . . . . . . . Time . | . . . . . . . . Parts Recycled . | . . . . . . . . Recycled Matter . | . . . . . . . . Retrieved Matter . | . . . . . . . . Retrieved Components . | . . . . . . . . Parts Scanalyzed . | . . . . . . . . Part Schematics Acquired . | . . . . . . . . Parts Damaged . | . . . . . . . . Bothacking | -11 -10 -10 -9 -9 -6 -6 -6 ------------ Run | Yrd Mat Sub Rec Scr Fac Was Fac Used RIF Installer . | . . . . . . . . Robots Hacked . | . . . . . . . . Non-combat . | . . . . . . . . Combat . | . . . . . . . . Robot Hacks Applied . | . . . . . . . . Relay Couplers Released 1 | . . . . . . . 1 Machine Destruction 1 | . . . . . . . 1 Fabnet Peak Effective % . | . . . . . . . . Robots Rewired 3 | . . . 3 . . . . Allies Hacked . | . . . . . . . . Hacks Repelled . | . . . . . . . . Allies | -11 -10 -10 -9 -9 -6 -6 -6 -------- Run | Yrd Mat Sub Rec Scr Fac Was Fac Total Allies 9 | . . . 3 . . 1 5 Largest Group 5 | . . . 3 3 3 1 5 Highest-Rated Group 140 | . . . 48 48 48 31 140 Highest-Rated Ally 31 | . . . 18 18 18 31 28 Total Orders 9 | . . . . . 9 . . STAY 1 | . . . . . 1 . . ROAM 1 | . . . . . 1 . . FOLLOW 1 | . . . . . 1 . . EXPLORE 3 | . . . . . 3 . . RETURN 3 | . . . . . 3 . . Ally Attacks 90 | . . . 3 . 3 10 74 Total Damage 1386 | . . . 92 . 57 104 1133 Kills 10 | . . . 2 . 1 . 7 Allies Corrupted . | . . . . . . . . Allies Melted 1 | . . 1 . . . . . Intel | -11 -10 -10 -9 -9 -6 -6 -6 ------- Run | Yrd Mat Sub Rec Scr Fac Was Fac Active Infowar (turns) 12654 | 65 233 4067 1736 4882 506 151 1014 Optics 378 | . . . . . 378 . . Seismic 12639 | 65 233 4067 1736 4882 491 151 1014 Decoding 956 | . . . . . 500 151 305 Robot Analysis Total 5 | . . . . 5 . . . Derelict Logs Recovered 6 | . . 1 . 5 . . . Drone Launches 3 | . . . . . 3 . . Drone Recoveries 2 | . . . . . 2 . . Decoded 0b10 Intel 19 | . . . . . 9 . 10 Garrisons 1 | . . . . . 1 . . Patrols 2 | . . . . . . . 2 Reinforcements 6 | . . . . . 2 . 4 Guards 10 | . . . . . 6 . 4 Exploration | -11 -10 -10 -9 -9 -6 -6 -6 ------------- Run | Yrd Mat Sub Rec Scr Fac Was Fac Turns Passed 14282 | 186 233 4584 1736 5872 506 151 1014 Spaces Moved 7029 | 94 136 2411 623 2544 320 163 738 Core 475 | 17 . . . 458 . . . Treads 4092 | 77 136 2411 623 845 . . . Legs . | . . . . . . . . Wheels 2432 | . . . . 1241 290 163 738 Hover . | . . . . . . . . Flight 30 | . . . . . 30 . . Fastest Speed 50 | 50 160 160 160 50 70 80 70 Average Speed 171 | 140 160 163 257 201 104 80 75 Slowest Speed 1600 | 160 160 250 340 1600 190 80 80 Overloaded Moves . | . . . . . . . . Propulsion Burnouts . | . . . . . . . . Robots Hopped 1 | . . . . . . . 1 Potential Cave-ins 3 | . . 3 . . . . . Cave-ins Triggered . | . . . . . . . . Exploration Rate (%) 55 | 5 38 97 98 91 17 83 14 Regions Visited 7 Branch Regions 3 Pre-discovered Areas 5 | . . 1 . 4 . . . Known Exits Taken 2 | . . 1 . 1 . . . Unknown Exits Taken 3 | 1 1 . 1 . . . . Scrap Searched 22 | . . 11 . 11 . . . Spaces Dug 14 | . . 4 . . . . 10 Terrain Destroyed 121 | . . 6 6 . 20 7 82 Melee . | . . . . . . . . Projectile 63 | . . 6 6 . 20 7 24 AOE 58 | . . . . . . . 58 Terrain Rammed . | . . . . . . . . Walls Destroyed . | . . . . . . . . Machines Disabled . | . . . . . . . . Actions | -11 -10 -10 -9 -9 -6 -6 -6 --------- Run | Yrd Mat Sub Rec Scr Fac Was Fac Total 8936 | 124 151 2894 722 3311 468 176 1090 Wait 1415 | . 13 336 7 693 90 6 270 Move 7022 | 93 135 2411 622 2543 320 162 736 Hop 1 | . . . . . . . 1 Pick Up 89 | 10 1 21 10 30 8 . 9 Fast Attach 3 | 1 . . . 2 . . . Attach 33 | 6 . 1 . 9 13 . 4 Detach . | . . . . . . . . Swap 34 | 1 1 18 2 1 3 . 8 Drop 65 | 1 1 17 1 32 7 1 5 Fire 208 | 12 . 90 19 . 25 6 56 Melee . | . . . . . . . . Ram 2 | . . . . . 2 . . Kick . | . . . . . . . . Crush . | . . . . . . . . Escape Stasis . | . . . . . . . . Rewire 61 | . . . 61 . . . . Trap 3 | . . . . 1 . 1 1 Miscellaneous . | . . . . . . . . Route ------- -11/Scrapyard -10/Materials (discovered 2 exits: [*Min] / *Sub) -10/Subcaves (discovered 3 exits: *Mat x2 / *Rec) -9/Recycling (discovered 2 exits: [*Fac] / *Scr) -9/Scraptown (discovered 2 exits: *Fac x2) -6/Factory -6/Waste -6/Factory History --------- Turn | Location | Event 16 | -11/Scrapyard | Discovered new exit (range 15) 187 | -11/Scrapyard | Entered Materials 188 | -10/Materials | Met a group of wandering Federalists 292 | -10/Materials | Discovered new exit (range 16) 302 | -10/Materials | Build established: Mutant 411 | -10/Materials | Discovered new exit (range 6) 420 | -10/Materials | Entered Subcaves 421 | -10/Subcaves | Continued accompanying wandering Federalists (5) 549 | -10/Subcaves | Lost 3 allies 552 | -10/Subcaves | Learned location of Zion (-7) 552 | -10/Subcaves | Met a Zionite searching for "candidates" 722 | -10/Subcaves | Visited Clippyterm 726 | -10/Subcaves | Identified exit to Materials 726 | -10/Subcaves | Identified exit to Recycling 726 | -10/Subcaves | Learned Factory fabricator intel 763 | -10/Subcaves | Shifting Twisted Machinery released Spk. Treads 763 | -10/Subcaves | Shifting Twisted Machinery released Mak. Power Source 1097 | -10/Subcaves | Shifting Twisted Machinery released Sub. Power Source 1102 | -10/Subcaves | Shifting Twisted Machinery released Shrapnel Trap 1103 | -10/Subcaves | A swath of the cavern ceiling suddenly collapsed 2921 | -10/Subcaves | Shifting Twisted Machinery released Sub. Machine Gun 2921 | -10/Subcaves | Shifting Twisted Machinery released Sub. Machine Gun 3012 | -10/Subcaves | A swath of the cavern ceiling suddenly collapsed 4360 | -10/Subcaves | Disturbed a concealed Subdweller 4510 | -10/Subcaves | Visited 4L-MR0's lab 4600 | -10/Subcaves | Found Flightbrick 5004 | -10/Subcaves | Entered Recycling 5454 | -9/Recycling | Discovered new exit (range 6) 6652 | -9/Recycling | Scanned before Scraplab entrance 6699 | -9/Recycling | Entered Scraplab 6730 | -9/Recycling | Discovered new exit (range 2) 6740 | -9/Recycling | Entered Scraptown 6740 | -9/Scraptown | Accompanied by 3 allies 7128 | -9/Scraptown | Visited Junk Repository 7250 | -9/Scraptown | Visited Cyclists 7669 | -9/Scraptown | Received an X-ray algorithm 7832 | -9/Scraptown | Heard Great Nut preacher, LISTEN AND RECITE! 7913 | -9/Scraptown | Scanned Subdweller tech in exchange for log data 7930 | -9/Scraptown | Learned Research garrison access intel 7934 | -9/Scraptown | Learned location of Testing (-2) 7937 | -9/Scraptown | Learned Research stockpile data 7985 | -9/Scraptown | Discovered new exit (range 5) 8192 | -9/Scraptown | Visited Comm Corps 8321 | -9/Scraptown | Visited Bundlers 8631 | -9/Scraptown | Visited Assassins FH 8672 | -9/Scraptown | Visited Science Testing Area 8719 | -9/Scraptown | Visited UFD Registry 8719 | -9/Scraptown | Registered with UFD as "Quantumshaft" 8794 | -9/Scraptown | Visited DA-N13 Charitable Foundation 8903 | -9/Scraptown | Visited Modified Component R&D 9042 | -9/Scraptown | Visited Cartography Club 9117 | -9/Scraptown | Visited Scrapoid Pod Storage 9165 | -9/Scraptown | Visited A0-MCA Data Center 9270 | -9/Scraptown | Visited Science Guys 9318 | -9/Scraptown | Visited Chapter 10 9379 | -9/Scraptown | Found DCF Scrap (27 items) 9596 | -9/Scraptown | Delivered Scrap Shield to a Scientist 9775 | -9/Scraptown | Visited Infowarlord's Domain 9797 | -9/Scraptown | Visited Scrap Suit Storage 9812 | -9/Scraptown | Found Scrap Suit 9845 | -9/Scraptown | Visited Analyses Database 10840 | -9/Scraptown | Found Surveybot 17 Chip 10869 | -9/Scraptown | Learned location of Proximity Caves (-6) 10869 | -9/Scraptown | Learned 16 Materials zone layouts 10869 | -9/Scraptown | Learned 8 Factory zone layouts 10869 | -9/Scraptown | Learned 8 Research zone layouts 10869 | -9/Scraptown | Learned 4 Mines zone layouts 10869 | -9/Scraptown | Learned 16 Lower Caves zone layouts 10869 | -9/Scraptown | Learned 20 Lower Caves zone layouts 10869 | -9/Scraptown | Learned 16 Upper Caves zone layouts 10869 | -9/Scraptown | Learned 12 Proximity Caves zone layouts 10869 | -9/Scraptown | Learned 16 Proximity Caves zone layouts 10869 | -9/Scraptown | Learned 4 Armory zone layouts 10869 | -9/Scraptown | Learned Storage emergency access door positions 10869 | -9/Scraptown | Learned location of 1 exit from Factory 10869 | -9/Scraptown | Learned location of 3 exits from Upper Caves 10869 | -9/Scraptown | Identified exit to Factory 12119 | -9/Scraptown | Warned about trapping Scraptown 12501 | -9/Scraptown | Met Optimus 12501 | -9/Scraptown | Accepted into 0bPrime 12612 | -9/Scraptown | Entered Factory 12612 | -6/Factory | Accompanied by 3 allies 12612 | -6/Factory | Evolved 8 slots: Propulsion x3, Utility x4, Weapon x1 12613 | -6/Factory | Identified exit to Factory 12614 | -6/Factory | Attached Flightbrick, gained temporary slots: Utility x3 12615 | -6/Factory | Loaded intel: 6 fabricator locations 12886 | -6/Factory | Lost 3 allies 13118 | -6/Factory | Sucked down chute 13118 | -6/Factory | Entered Waste 13119 | -6/Waste | Met a frightened Derelict 13171 | -6/Waste | Spotted C-40 Crusher 13196 | -6/Waste | Spotted C-40 Crusher 13205 | -6/Waste | Spotted C-40 Crusher 13211 | -6/Waste | Spotted C-40 Crusher 13213 | -6/Waste | Build established: Scrapper 13216 | -6/Waste | Crushed by Compactor (0 parts destroyed, 1 dropped) 13220 | -6/Waste | Spotted C-40 Crusher 13221 | -6/Waste | Spotted C-40 Crusher 13257 | -6/Waste | Discovered new exit (range 16) 13269 | -6/Waste | Entered Factory 13271 | -6/Factory | Identified exit to DSF 13601 | -6/Factory | Scrapoids reinforcements arrived? 13708 | -6/Factory | Garrison activated, responded to threat 13734 | -6/Factory | Destroyed 8 combat bots 14283 | -6/Factory | Self-destructed Last Messages --------------- 13999_ G-67 Veteran heat damages Flexi-carbon Leg. 13999_ R-10 Processor collects Adv. Heat Sink. 13999_ U-05 Engineer lays Concrete. 14009_ The unstable cave ceiling collapses. 14016_ U-05 Engineer lays Concrete. 14019_ U-05 Engineer repairs door. 14020_ U-05 Engineer lays Concrete. 14022_ U-05 Engineer builds a Wall. 14071_ U-05 Engineer lays Concrete. 14072_ U-05 Engineer builds a Wall. 14108_ ALERT: Suspicious intruders detected, dispatching Cutter reinforcements to area. 14122_ U-05 Engineer builds a Wall. 14131_ U-05 Engineer lays Concrete. 14206_ ALERT: Suspicious intruders detected, dispatching Cutter reinforcements to area. 14279_ Ovr. Scrapsphere destroyed. 14279_ Knocked back. 14280_ Slug penetrates Terminal. 14283_ Plasma Cutter destroyed. Map ----- +----------------------------------------------------+ | ?????????????????????????????????????????????????? | | ?????????????????????????????????????????????????? | | ?????????????????????????????????????????????????? | | ?????????????????????????????????????????????????? | | ?????????????????????????????????????????????????? | | ???????????????????####??????????????????????????? | | ??????????????###### ###????????????????????????? | | ??????????????# ##############???????????????????? | | ?????????????## # #???????????????????? | | ?????????????# # #???????????????????? | | ?????????????# " #???????????????????? | | ?????????????## # #???????????????????? | | ??????????????# # ##??###########?????? | | ??????????????# # ###?# #?????? | | ??????????????# # # ### #?????? | | ??????????????# # # ## """ """ #?????? | | ??????????????### # "## """ """ #?????? | | ????????????????# + + """ """ #?????? | | ????????????????# # "## #?????? | | ????????????????# % # ## #?????# | | ????????????????#######+###### ## #?????? | | ??????????????????# # #######+#####?????# | | ??????????????????# ####### #?????## | | ??????????????????# ######## | | ??????????????????# ""% u | | ??????????????????#% T" @ H " %% | | ??????????????????# c h %%" | | ??????????????????# o ######## | | ??????????????????# ####### % #???## | | ??????????????????# #?####### ###?### | | ?????????????????######+####### * # # ?? # | | ?????????????????# # %/ + "?" | | ?????????????????# """" """" # # # """ * | | ?????????????????# """" """" # %# # """ | | ?????????????????# """" """" # % ## ## | | ?????????????????# """" """" # # ## """ !# | | ?????????????????#! # ## ## """ | | ?????????????????# """" """" # ""!## ## """ ! # | | ?????????????????# """" """ #= G ## ## ## | | ?????????????????# """" """ # "" ## ## """ #?? | | ?????????????????# """" """" # " ## ## """ ### | | ?????????????????# # ## ## """ + | | ?????????????????# ######## + ### | | ?????????????????##############??????###########?? | | ?????????????????????????????????????????????????? | | ?????????????????????????????????????????????????? | | ?????????????????????????????????????????????????? | | ?????????????????????????????????????????????????? | | | | | +----------------------------------------------------+ Best States ------------- Heat Dissipation 56 Energy Generation 18 Energy Capacity 310 Matter Stores 300 Matter Capacity 300 Sight Range 22 Terrain Scan Density 10 Armor Coverage 150 Evasion (%) 50 Targeting Accuracy 6 Recoil Reduction 2 Authchip Count 2 Item Schematics ----------------- None Robot Schematics ------------------ None Fabricated ------------ Nothing Repaired ---------- Nothing Alien Tech Used ----------------- None Achievements -------------- None Challenges ------------ None Game ------ Seed ChromionHeartGuard Manual? 0 Play Time 01:50:13 Cumulative 75.9 hours Start 2025.07.01 @ 13:19:36 End 2025.07.03 @ 20:09:46 Sessions 9 Manual Loads 0 Difficulty Rogue Special Mode None Game No. 137 Rogue 137 Adventurer 0 Explorer 0 Win Type - Total 1 Types 1/0/0/0/0/0/0/0/0/0 Lore% 57 Gallery% 46 Achievement% 41 Wizard Run 0 Options --------- Layout 0 ASCII 0 Keyboard 0 Movement Mouse Keybinds 0 Fullscreen 1 Font 16/SmallcapsGlow Map View 75x55 Zoom Use 0% Tactical HUD 1 Map Filters NONE Filters NONE Steam 1 RUN: 50cefb4d-9bd6-48a7-b360-179aa1a5a95b